Cogmind - Beta 12 *** ADVENTURER MODE // 2023.07.02 @ 20:43:05 Player: Blade Result: Destroyed by Y-45 Defender with Heavy Assault Rifle Performance ------------- Evolutions (2) 1000 Regions Visited (5) 1000 Robots Destroyed (8) 40 Value Destroyed (164) 164 Prototype IDs (2) 40 Alien Tech Used (0) 0 Bonus (0) 0 TOTAL SCORE: 2244 Bonus ------- None Cogmind --------- Core Integrity 0/550 Matter 118/300 Energy 84/100 System Corruption 1% Temperature Cool (27) Movement Core (50) Location -8/Storage Parts ------- > --- POWER (1) -------- (None) > --- PROPULSION (4) --- (None) > --- UTILITY (4) ------ (None) > --- WEAPON (2) ------- Assault Rifle Datajack > --- INVENTORY (5) ---- Faulty Improved VTOL Module Faulty Improved VTOL Module Peak State ------------ > --- POWER ------------ Improved Ion Engine > --- PROPULSION ------- VSS Leg VSS Leg > --- UTILITY ---------- Small Storage Unit Experimental Sensor Array Improved Utility Shielding > --- WEAPON ----------- Small Laser Assault Rifle > --- INVENTORY -------- Light Ion Engine Hover Unit Hover Unit Particle Cannon Particle Cannon Light Assault Rifle Datajack Datajack [Rating: 24] Favorites ----------- Power Light Ion Engine Engine Light Ion Engine Power Core Light Nuclear Core Propulsion Wheel Leg VSS Leg Wheel Wheel Hover Unit Hover Unit Flight Unit Flight Unit Utility Small Storage Unit Device Experimental Sensor Array Storage Small Storage Unit Protection Improved Utility Shielding Weapon Light Assault Rifle Energy Gun Small Laser Ballistic Gun Light Assault Rifle Special Melee Weapon Datajack Build | -11 -10 -10 -9 -8 -8 ------- Run | Jun Mat Min Mat Mat Sto Slots Evolved 4 | . . . 2 2 . Power . | . . . . . . Propulsion 2 | . . . 1 1 . Utility 2 | . . . 1 1 . Weapon . | . . . . . . Parts Attached 39 | 6 1 1 20 5 6 Power 7 | 1 . . 3 3 . Engine 5 | 1 . . 3 1 . Core 2 | . . . . 2 . Reactor . | . . . . . . Propulsion 11 | 2 . . 8 1 . Treads . | . . . . . . Leg 3 | . . . 3 . . Wheel 2 | 2 . . . . . Hover 2 | . . . 2 . . Flight 4 | . . . 3 1 . Utility 10 | 1 . 1 4 . 4 Device 7 | . . 1 2 . 4 Storage 1 | 1 . . . . . Processor . | . . . . . . Hackware . | . . . . . . Protection 2 | . . . 2 . . Artifact . | . . . . . . Weapon 11 | 2 1 . 5 1 2 Energy Gun 1 | . 1 . . . . Energy Cannon . | . . . . . . Ballistic Gun 8 | 2 . . 4 1 1 Ballistic Cannon . | . . . . . . Launcher . | . . . . . . Special Weapon . | . . . . . . Impact Weapon . | . . . . . . Slashing Weapon . | . . . . . . Piercing Weapon . | . . . . . . Special Melee Weapon 2 | . . . 1 . 1 Unidentified Prototypes 2 | . . 1 1 . . Parts Lost 8 | . . . 4 4 . Power 2 | . . . 1 1 . Propulsion 4 | . . . 2 2 . Utility 1 | . . . 1 . . Weapon 1 | . . . . 1 . Highest Loss Streak 4 | . . . 1 4 . To Critical Strikes . | . . . . . . Average Slot Usage (%) 67 | . 85 91 67 18 9 Engine 10 | . 14 14 9 4 . Leg 4 | . . . 12 . . Wheel 12 | . 28 28 . . . Hover 1 | . . . 2 . . Flight 1 | . . . 2 6 . Device 6 | . . 5 9 . 7 Storage 9 | . 14 14 8 . . Protection 2 | . . . 7 . . Energy Gun 7 | . 11 14 5 . . Ballistic Gun 10 | . 16 14 8 6 . Naked Turns 83 | . . . . 38 45 Heaviest Build 24 | 11 11 11 18 6 24 Greatest Support 24 | 20 20 20 24 4 3 Greatest Overweight (x) 7 | . . . 1 1 7 Average Overweight (x) . | . . . . . . Largest Inventory Capacity 8 | 8 8 8 8 5 5 Average Capacity 7 | 7 8 8 7 5 5 Most Carried 8 | . 1 2 8 5 5 Average Carried 2 | . . 1 4 4 3 Final Capacity 8 | 8 8 8 5 5 5 Final Carried 5 | . 1 1 5 4 2 Class Distribution -------------------- 100% | Mutant Dominant Class ---------------- Mutant | -10/Materials Mutant | -10/Mines Mutant | -9/Materials Mutant | -8/Materials Mutant | -8/Storage Resources | -11 -10 -10 -9 -8 -8 ----------- Run | Jun Mat Min Mat Mat Sto Matter Collected 423 | 219 . 75 117 . 12 Remotely . | . . . . . . Salvage Created 296 | . 15 93 175 13 . Parts 23 | . 5 3 13 2 . Haulers Intercepted . | . . . . . . Recyclers Shooed 2 | . . . 1 1 . Parts Field Recycled . | . . . . . . Retrieved Matter . | . . . . . . Parts Self-Destructed . | . . . . . . Prevented . | . . . . . . Kills | -11 -10 -10 -9 -8 -8 ------- Run | Jun Mat Min Mat Mat Sto Combat Hostiles Destroyed 5 | . . 2 2 1 . Guns 5 | . . 2 2 1 . Classes Destroyed 5 | . 1 1 3 . . Tunneler 1 | . 1 . . . . Recycler 1 | . . . 1 . . Watcher 1 | . . . 1 . . Swarmer 2 | . . . 1 1 . Grunt 3 | . . 2 1 . . Best Kill Streak 2 | . 1 2 1 1 . Combat Bots Only 2 | . . 2 1 1 . Max Kills in Single Turn 1 | . 1 1 1 1 . Gunslinging . | . . . . . . Exploded . | . . . . . . Melee . | . . . . . . Uniques/NPCs Destroyed . | . . . . . . Combat | -11 -10 -10 -9 -8 -8 -------- Run | Jun Mat Min Mat Mat Sto Damage Taken 1273 | . 34 97 366 477 299 Core 693 | . 17 8 111 293 264 Absorbed by Shields . | . . . . . . Redirected to Shielding 17 | . . . 17 . . Core Remaining (%) 87 | 100 . 90 72 . . Volleys Fired 39 | . 4 10 16 8 1 Largest 2 | . 2 2 2 1 1 Hottest 60 | . 60 60 60 20 20 Shots Fired 54 | . 7 20 18 8 1 Gun 54 | . 7 20 18 8 1 Cannon . | . . . . . . Launcher . | . . . . . . Special . | . . . . . . Kinetic 39 | . 4 10 16 8 1 Thermal 15 | . 3 10 2 . . Explosive . | . . . . . . Electromagnetic . | . . . . . . Robot Hit Streak 11 | . 1 11 7 3 . Robot Miss Streak 4 | . 4 1 2 2 2 Penetration Max . | . . . . . . Secondary Targets . | . . . . . . Shots Hit Robots 41 | . 2 17 15 4 3 Core Hits 16 | . 1 6 6 3 . Critical Kills . | . . . . . . Critical Parts Destroyed . | . . . . . . Critical Strikes . | . . . . . . Melee Attacks 6 | . . . 3 . 3 Impact . | . . . . . . Slashing . | . . . . . . Piercing . | . . . . . . Sneak Attacks 3 | . . . 3 . . Combat Hostiles . | . . . . . . Follow-up Attacks . | . . . . . . Damage Inflicted 392 | . 24 153 154 55 6 Guns 358 | . 24 153 137 44 . Cannons . | . . . . . . Explosions . | . . . . . . Melee . | . . . . . . Ramming 34 | . . . 17 11 6 Kinetic 240 | . 13 69 114 44 . Thermal 118 | . 11 84 23 . . Explosive . | . . . . . . Electromagnetic . | . . . . . . Impact . | . . . . . . Slashing . | . . . . . . Piercing . | . . . . . . Highest Corruption 2 | . . . 2 1 1 Average Corruption 1 | . . . 2 1 1 Corruption Purged . | . . . . . . Corruption Blocked . | . . . . . . Effects 3 | . . . 1 . 2 Message Errors 1 | . . . . . 1 Matter Fused 1 | . . . 1 . . Data Loss (minor) 1 | . . . . . 1 Overload Shots . | . . . . . . Overflow Damage . | . . . . . . Projectiles . | . . . . . . Explosions . | . . . . . . Melee . | . . . . . . Knockbacks . | . . . . . . Impact . | . . . . . . Kinetic . | . . . . . . Secondary . | . . . . . . Self-Inflicted Damage 8 | . . . . 5 3 Shots . | . . . . . . Rammed 4 | . . . . 3 1 Targets Rammed 12 | . . . 8 3 1 Kicked 8 | . . . 8 . . Crushed . | . . . . . . Highest Temperature 132 | . 26 132 6 . . Average Temperature 53 | . 13 64 6 . . Received Heat Transfer 657 | . 24 72 228 153 180 Siege Activations . | . . . . . . Robots Corrupted . | . . . . . . Combat Hostiles . | . . . . . . Parts Fried . | . . . . . . Impact Corruptions . | . . . . . . Robots Melted . | . . . . . . Combat Hostiles . | . . . . . . Parts Melted . | . . . . . . Heat Transferred 275 | . 25 200 50 . . Parts Sabotaged . | . . . . . . Parts Stolen . | . . . . . . Parts Stripped . | . . . . . . Power Chain Reactions . | . . . . . . Missiles Intercepted . | . . . . . . Alert | -11 -10 -10 -9 -8 -8 ------- Run | Jun Mat Min Mat Mat Sto Peak Influence 270 | . 35 76 270 166 77 Initial 59 | . . 11 . 37 59 Average 52 | . 13 39 66 94 59 Maximum Alert Level 1 | . . . 1 . . Low Security (%) 97 | 100 100 100 93 100 100 Level 1 2 | . . . 6 . . Level 2 . | . . . . . . Level 3 . | . . . . . . Level 4 . | . . . . . . Level 5 . | . . . . . . High Security . | . . . . . . Max Security . | . . . . . . Squads Dispatched 7 | . 1 . 2 4 . Investigation 6 | . 1 . 2 3 . Extermination . | . . . . . . Reinforcement 1 | . . . . 1 . Assault . | . . . . . . Garrison . | . . . . . . Intercept . | . . . . . . Searches Triggered . | . . . . . . Construction Impeded . | . . . . . . Haulers Reinforced . | . . . . . . Active Scanning Responses . | . . . . . . Cargo Convoy Interrupts . | . . . . . . Stealth | -11 -10 -10 -9 -8 -8 --------- Run | Jun Mat Min Mat Mat Sto Distress Signals 3 | . . . 2 1 . Communications Jammed . | . . . . . . Distress Signals . | . . . . . . Times Spotted 47 | . 3 2 19 21 2 Peak Tracking Total 14 | . 3 2 9 14 2 Tactical Retreats 6 | . . . 4 2 . Traps | -11 -10 -10 -9 -8 -8 ------- Run | Jun Mat Min Mat Mat Sto Traps Triggered 2 | . 1 . . 1 . Indirectly . | . . . . . . Trap Hack Attempts . | . . . . . . Triggered . | . . . . . . Disarmed . | . . . . . . Reprogrammed . | . . . . . . Reused . | . . . . . . Traps Extracted . | . . . . . . Installed . | . . . . . . Triggered . | . . . . . . Machines | -11 -10 -10 -9 -8 -8 ---------- Run | Jun Mat Min Mat Mat Sto Machines Disabled . | . . . . . . Max in Single Turn . | . . . . . . Machines Repaired . | . . . . . . Machines Sabotaged . | . . . . . . Overloaded Fab Kills . | . . . . . . Hacking | -11 -10 -10 -9 -8 -8 --------- Run | Jun Mat Min Mat Mat Sto Machines Accessed 13 | . 1 . 6 4 2 Terminals 11 | . . . 5 4 2 Fabricators . | . . . . . . Repair Stations . | . . . . . . Recycling Units 2 | . 1 . 1 . . Scanalyzers . | . . . . . . Garrison Access . | . . . . . . Total Hacks 36 | . 2 . 16 13 5 Successful 19 | . 2 . 8 5 4 Failed 17 | . . . 8 8 1 Catastrophic 3 | . . . 3 . . Database Lockouts . | . . . . . . Manual . | . . . . . . Terminals 33 | . . . 15 13 5 Fabricators . | . . . . . . Repair Stations . | . . . . . . Recycling Units 3 | . 2 . 1 . . Scanalyzers . | . . . . . . Garrison Access . | . . . . . . Terminal Hacks 16 | . . . 7 5 4 Record 2 | . . . . . 2 Robot Analysis 1 | . . . 1 . . Open Door 1 | . . . . . 1 Branch Access Points 1 | . . . . 1 . Emergency Access Points 1 | . . . 1 . . Alert Level 2 | . . . . 1 1 Dispatch Records 1 | . . . 1 . . Investigation Status 2 | . . . 2 . . Reinforcement Status 1 | . . . . 1 . Recall Investigation 2 | . . . 1 1 . Registered Components 1 | . . . 1 . . Zone Layout 1 | . . . . 1 . Fabricator Hacks . | . . . . . . Repair Station Hacks . | . . . . . . Recycling Unit Hacks 3 | . 2 . 1 . . Report Inventory 2 | . 1 . 1 . . Retrieve Components 1 | . 1 . . . . Scanalyzer . | . . . . . . Garrison Access Hacks . | . . . . . . Unauthorized Hacks . | . . . . . . Terminals . | . . . . . . Fabricators . | . . . . . . Repair Stations . | . . . . . . Recycling Units . | . . . . . . Scanalyzers . | . . . . . . Garrison Access . | . . . . . . Data Cores Recovered . | . . . . . . Used . | . . . . . . Hacking Detections 8 | . . . 4 4 . Full Trace Events 5 | . . . 2 3 . Feedback Events . | . . . . . . Feedback Blocked . | . . . . . . Robot Schematics Acquired . | . . . . . . Robots Built . | . . . . . . Authchips . | . . . . . . Time . | . . . . . . Total Robot Build Rating . | . . . . . . Part Schematics Acquired . | . . . . . . Parts Built . | . . . . . . Authchips . | . . . . . . Time . | . . . . . . Total Part Build Rating . | . . . . . . Parts Repaired . | . . . . . . Time . | . . . . . . Parts Recycled . | . . . . . . Recycled Matter . | . . . . . . Retrieved Matter . | . . . . . . Retrieved Components 1 | . 1 . . . . Parts Scanalyzed . | . . . . . . Part Schematics Acquired . | . . . . . . Parts Damaged . | . . . . . . Bothacking | -11 -10 -10 -9 -8 -8 ------------ Run | Jun Mat Min Mat Mat Sto Used RIF Installer . | . . . . . . Robots Hacked 2 | . . . 1 . 1 Non-combat 1 | . . . 1 . . Combat 1 | . . . . . 1 Robot Hacks Applied 2 | . . . 1 . 1 parse_system 2 | . . . 1 . 1 Relay Couplers Released . | . . . . . . Fabnet Peak Effective % . | . . . . . . Robots Rewired . | . . . . . . Allies Hacked . | . . . . . . Hacks Repelled . | . . . . . . Allies | -11 -10 -10 -9 -8 -8 -------- Run | Jun Mat Min Mat Mat Sto Total Allies . | . . . . . . Largest Group . | . . . . . . Highest-Rated Group . | . . . . . . Highest-Rated Ally . | . . . . . . Total Orders 1 | . . . . . 1 FOLLOW 1 | . . . . . 1 Ally Attacks . | . . . . . . Total Damage . | . . . . . . Kills . | . . . . . . Allies Corrupted . | . . . . . . Allies Melted . | . . . . . . Intel | -11 -10 -10 -9 -8 -8 ------- Run | Jun Mat Min Mat Mat Sto Robot Analysis Total 1 | . . . 1 . . Derelict Logs Recovered 1 | . . 1 . . . Drone Launches 10 | . . . . . 10 Drone Recoveries 4 | . . . . . 4 Exploration | -11 -10 -10 -9 -8 -8 ------------- Run | Jun Mat Min Mat Mat Sto Turns Passed 1320 | 67 115 434 468 146 90 Spaces Moved 1507 | 75 128 505 459 278 62 Core 143 | 6 . . 1 74 62 Treads . | . . . . . . Legs 239 | . . . 239 . . Wheels 707 | 69 128 505 5 . . Hover . | . . . . . . Flight 418 | . . . 214 204 . Fastest Speed 40 | 50 80 80 40 40 50 Average Speed 73 | 77 80 80 80 43 77 Slowest Speed 400 | 80 80 80 180 120 400 Overloaded Moves . | . . . . . . Propulsion Burnouts . | . . . . . . Robots Hopped 9 | . . . 2 7 . Cave-ins Triggered . | . . . . . . Exploration Rate (%) 34 | 5 30 88 43 32 10 Regions Visited 5 Branch Regions 2 Pre-discovered Areas . | . . . . . . Known Exits Taken 2 | . . . 1 1 . Unknown Exits Taken 3 | 1 1 1 . . . Scrap Searched 1 | . . 1 . . . Spaces Dug . | . . . . . . Terrain Destroyed . | . . . . . . Melee . | . . . . . . Projectile . | . . . . . . AOE . | . . . . . . Terrain Rammed . | . . . . . . Walls Destroyed . | . . . . . . Machines Disabled . | . . . . . . Actions | -11 -10 -10 -9 -8 -8 --------- Run | Jun Mat Min Mat Mat Sto Total 1660 | 80 133 516 538 288 105 Wait . | . . . . . . Move 1484 | 74 127 504 454 263 62 Hop 9 | . . . 2 7 . Pick Up 23 | . 1 1 16 1 4 Fast Attach 6 | 6 . . . . . Attach 22 | . . 1 12 3 6 Detach 7 | . . . 7 . . Swap 11 | . 1 . 8 2 . Drop 17 | . . . 12 1 4 Fire 39 | . 4 10 16 8 1 Melee 6 | . . . 3 . 3 Ram 4 | . . . . 3 1 Kick 8 | . . . 8 . . Crush . | . . . . . . Escape Stasis . | . . . . . . Rewire 24 | . . . . . 24 Trap . | . . . . . . Miscellaneous . | . . . . . . Route ------- -11/Junkyard -10/Materials -10/Mines -9/Materials -8/Materials -8/Storage History --------- Turn | Location | Event 11 | -11/Junkyard | Discovered new exit (range 15) 68 | -11/Junkyard | Entered Materials 162 | -10/Materials | Discovered new exit (range 12) 183 | -10/Materials | Entered Mines 252 | -10/Mines | Learned 4 Materials zone layouts 310 | -10/Mines | Build established: Mutant 317 | -10/Mines | Found a hidden stash of uninstalled traps 434 | -10/Mines | Found a damaged Exp. Sensor Array with a note attached 436 | -10/Mines | Found Prototype Device 437 | -10/Mines | Identified Exp. Sensor Array 602 | -10/Mines | Discovered new exit (range 4) 617 | -10/Mines | Entered Materials 617 | -9/Materials | Evolved 2 slots: Propulsion x1, Utility x1 618 | -9/Materials | Identified exit to Materials 1085 | -9/Materials | Entered another Materials area 1085 | -8/Materials | Evolved 2 slots: Propulsion x1, Utility x1 1097 | -8/Materials | Identified exit to Storage 1218 | -8/Materials | Core integrity fell below 50% 1224 | -8/Materials | Lost 4 parts (1p2n1w) 1231 | -8/Materials | Entered Storage 1304 | -8/Storage | Core integrity fell below 20% 1321 | -8/Storage | Destroyed by Y-45 Defender with Heavy Assault Rifle Last Messages --------------- 01306_ Drone cannot be rewired. 01306_ Critical hit (Burn: +37). 01308_ Jacked Y-45 Defender... >>parse_system Reading system data... 01309_ Jacked Y-45 Defender... 01312_ Attempting to rewire Drone. 01312_ Drone cannot be rewired. 01313_ Attempting to rewire Drone. 01313_ Drone cannot be rewired. 01314_ Jacked Y-45 Defender... 01316_ Attempting to rewire Drone. 01316_ Drone cannot be rewired. 01317_ Attempting to rewire Drone. 01317_ Drone cannot be rewired. 01318_ Attempting to rewire Drone. 01318_ Drone cannot be rewired. 01319_ Attempting to rewire Drone. 01319_ Drone cannot be rewired. 01321_ Critical hit (Burn: +37). Map ----- +----------------------------------------------------+ | | | | | | | | | | | | | | | | | | | | | | | | | ?????????????????????????????????????????????????? | | ?????????????????????????????????????????????????? | | ?????????????????????????????????????????????????? | | ?????????????????????????????????????????????????? | | ???######################????????????????????????? | | ???# #????????????????????????? | | ???# #????????????????????????? | | ???# #????????????????????????? | | ???#########+######## #????????????????????????? | | ???????# #??# ^ ###??????????????????????? | | ???????# "" """ #??# #T######?????????????????? | | ???????# "T """ #??# #Y#n%!!#?????????????????? | | ???????# "" """ #??# u # !! %#?????????????????? | | ???????# #??# n@#!!! #?????????????????? | | ???????# ! #??# ########?????????????????? | | ???????# #??# #????????????????????????? | | ???????# #??# #????????????????????????? | | ???????####+######??# #????????????????????????? | | ???????????????????? ????????????????????????? | | ??????????????????? ????????????????????????? | | ?????????????????? ????????????????????????? | | ????????????????? ????????????????????????? | | ????????????????#### ????????????????????????? | | ???????????????????###+##????????????????????????? | | ?????????????????????????????????????????????????? | | ?????????????????????????????????????????????????? | | ?????????????????????????????????????????????????? | | ?????????????????????????????????????????????????? | | ?????????????????????????????????????????????????? | | ?????????????????????????????????????????????????? | | ?????????????????????????????????????????????????? | | ?????????????????????????????????????????????????? | | ?????????????????????????????????????????????????? | | ?????????????????????????????????????????????????? | | ?????????????????????????????????????????????????? | | ?????????????????????????????????????????????????? | | ?????????????????????????????????????????????????? | | ?????????????????????????????????????????????????? | +----------------------------------------------------+ Best States ------------- Heat Dissipation 31 Energy Generation 14 Energy Capacity 265 Matter Stores 300 Matter Capacity 300 Sight Range 16 Robot Scan Range 20 Terrain Scan Density 10 Resistance: KI 20 Resistance: TH 20 Resistance: EX 20 Resistance: EM 20 Resistance: I 20 Resistance: S 20 Resistance: P 20 Utility Shielding 66 Evasion (%) 62 Offensive Hacking 10 Item Schematics ----------------- None Robot Schematics ------------------ None Fabricated ------------ Nothing Alien Tech Used ----------------- None Achievements -------------- GoHome() Party Time Release The Drones! Challenges ------------ None Game ------ Seed NullGravitonClaws Manual? 0 Play Time 00:22:58 Cumulative 10.0 hours Start 2023.07.02 @ 20:22:29 End 2023.07.02 @ 20:43:05 Sessions 1 Manual Loads 0 Difficulty Adventurer Special Mode None Game No. 9 Rogue 0 Adventurer 9 Explorer 0 Win Type - Total 0 Types 0/0/0/0/0/0/0/0/0 Lore% 13 Gallery% 14 Achievement% 17 Wizard Run 0 Options --------- ASCII 0 Keyboard 0 Movement Arrows Keybinds 0 Fullscreen 1 Font 18/SmallcapsGlow Map View 76x50 Tactical HUD 1 Map Filters NONE Filters NONE Steam 1 RUN: 7a3124e0-4ee4-487c-bbf6-b00f931fc7a9